[Event "Titled Tuesday Blitz November 07 Early 2023"]
[White "Davidson, Kevin"]
[Black "Lopez Martinez, Josep Manuel"]
[WhiteFideId "2056810"]
[BlackFideId "2212943"]
[WhiteElo "2305"]
[BlackElo "2467"]
[Result "0-1"]
[Round "5"]
[TimeControl "180+1"]
[Date "2023.11.07"]
[WhiteClock "0:00:00"]
[BlackClock "0:01:08"]
[Board "180"]

1. e4 {[%clk 0:02:25]}  c5 {[%clk 0:02:57]} 2. Nf3 {[%clk 0:02:24]}  d6 {[%clk 0:02:55]} 3. d4 {[%clk 0:02:25]}  cxd4 {[%clk 0:02:55]} 4. Nxd4 {[%clk 0:02:26]}  Nf6 {[%clk 0:02:54]} 5. Nc3 {[%clk 0:02:26]}  a6 {[%clk 0:02:54]} 6. h3 {[%clk 0:02:26]}  h5 {[%clk 0:02:51]} 7. Bg5 {[%clk 0:02:19]}  e6 {[%clk 0:02:46]} 8. f4 {[%clk 0:02:11]}  Be7 {[%clk 0:02:45]} 9. Qf3 {[%clk 0:02:04]}  Qc7 {[%clk 0:02:43]} 10. O-O-O {[%clk 0:02:03]}  Nbd7 {[%clk 0:02:43]} 11. Bd3 {[%clk 0:01:59]}  b5 {[%clk 0:02:42]} 12. g4 {[%clk 0:01:24]}  Bb7 {[%clk 0:02:30]} 13. Kb1 {[%clk 0:01:13]}  b4 {[%clk 0:02:27]} 14. Nce2 {[%clk 0:01:12]}  Nc5 {[%clk 0:02:26]} 15. Bxf6 {[%clk 0:01:09]}  gxf6 {[%clk 0:02:20]} 16. gxh5 {[%clk 0:01:09]}  f5 {[%clk 0:02:16]} 17. Ng3 {[%clk 0:00:55]}  Bh4 {[%clk 0:02:14]} 18. Rhg1 {[%clk 0:00:40]}  O-O-O {[%clk 0:02:07]} 19. Qe3 {[%clk 0:00:27]}  Bxg3 {[%clk 0:01:55]} 20. Rxg3 {[%clk 0:00:27]}  fxe4 {[%clk 0:01:53]} 21. Be2 {[%clk 0:00:26]}  Kb8 {[%clk 0:01:49]} 22. Rg7 {[%clk 0:00:25]}  Rc8 {[%clk 0:01:40]} 23. Rdg1 {[%clk 0:00:18]}  e5 {[%clk 0:01:38]} 24. fxe5 {[%clk 0:00:17]}  dxe5 {[%clk 0:01:38]} 25. Nb3 {[%clk 0:00:16]}  Ne6 {[%clk 0:01:33]} 26. R7g2 {[%clk 0:00:08]}  f5 {[%clk 0:01:30]} 27. Bd1 {[%clk 0:00:03]}  f4 {[%clk 0:01:27]} 28. Qd2 {[%clk 0:00:04]}  e3 {[%clk 0:01:27]} 29. Qxb4 {[%clk 0:00:04]}  Rhd8 {[%clk 0:01:21]} 30. Bf3 {[%clk 0:00:02]}  Nd4 {[%clk 0:01:12]} 31. Nxd4 {[%clk 0:00:01]}  exd4 {[%clk 0:01:10]} 32. Qxb7+ {[%clk 0:00:01]}  Qxb7 {[%clk 0:01:11]} 33. Bxb7 {[%clk 0:00:01]}  Kxb7 {[%clk 0:01:11]} 34. h6 {[%clk 0:00:02]}  f3 {[%clk 0:01:10]} 35. Rg7+ {[%clk 0:00:02]}  Rc7 {[%clk 0:01:09]} 36. Rxc7+ {[%clk 0:00:01]}  Kxc7 {[%clk 0:01:08]} 37. Rg7+ {[%clk 0:00:02]}  Kd6 {[%clk 0:01:08]} 38. Rf7 {[%clk 0:00:00]}  f2 {[%clk 0:01:08]} 0-1


[Site "https://www.chess.com"]

[Event "Titled Tuesday Blitz November 07 Early 2023"]
[White "Schut, Han"]
[Black "Haitin, Ilja"]
[WhiteFideId "1005561"]
[BlackFideId "4501764"]
[WhiteElo "2303"]
[BlackElo "2447"]
[Result "0-1"]
[Round "5"]
[TimeControl "180+1"]
[Date "2023.11.07"]
[WhiteClock "0:00:50"]
[BlackClock "0:01:05"]
[Board "181"]

1. e4 {[%clk 0:02:39]}  e5 {[%clk 0:02:59]} 2. Nf3 {[%clk 0:02:38]}  Nc6 {[%clk 0:02:59]} 3. Bc4 {[%clk 0:02:39]}  d6 {[%clk 0:02:59]} 4. d4 {[%clk 0:02:39]}  Nf6 {[%clk 0:02:50]} 5. Nc3 {[%clk 0:02:38]}  Be7 {[%clk 0:02:44]} 6. Bb5 {[%clk 0:02:35]}  exd4 {[%clk 0:02:40]} 7. Nxd4 {[%clk 0:02:34]}  Bd7 {[%clk 0:02:40]} 8. Be2 {[%clk 0:02:28]}  O-O {[%clk 0:02:39]} 9. O-O {[%clk 0:02:28]}  Re8 {[%clk 0:02:31]} 10. Bf4 {[%clk 0:02:14]}  Nxd4 {[%clk 0:02:25]} 11. Qxd4 {[%clk 0:02:13]}  Bc6 {[%clk 0:02:25]} 12. Rfe1 {[%clk 0:02:02]}  Nd7 {[%clk 0:02:18]} 13. Rad1 {[%clk 0:01:44]}  Bf6 {[%clk 0:02:12]} 14. Qd2 {[%clk 0:01:42]}  Bxc3 {[%clk 0:01:55]} 15. Qxc3 {[%clk 0:01:42]}  Bxe4 {[%clk 0:01:52]} 16. Bb5 {[%clk 0:01:26]}  c6 {[%clk 0:01:42]} 17. Rxd6 {[%clk 0:01:15]}  cxb5 {[%clk 0:01:39]} 18. Qd4 {[%clk 0:01:09]}  Bc6 {[%clk 0:01:35]} 19. Rd1 {[%clk 0:01:06]}  Qe7 {[%clk 0:01:29]} 20. h3 {[%clk 0:00:56]}  Nf6 {[%clk 0:01:08]} 21. Bg5 {[%clk 0:00:51]}  Qe4 {[%clk 0:01:06]} 22. Bxf6 {[%clk 0:00:50]}  Qxg2# {[%clk 0:01:05]} 0-1


[Site "https://www.chess.com"]

[Event "Titled Tuesday Blitz November 07 Early 2023"]
[White "Rasmussen, Casper"]
[Black "Musalov, Ruslan"]
[WhiteFideId "1402005"]
[BlackFideId "4141490"]
[WhiteElo "2294"]
[BlackElo "2446"]
[Result "1-0"]
[Round "5"]
[TimeControl "180+1"]
[Date "2023.11.07"]
[WhiteClock "0:00:19"]
[BlackClock "0:00:00"]
[Board "182"]

1. c4 {[%clk 0:03:00]}  Nf6 {[%clk 0:03:00]} 2. g3 {[%clk 0:03:01]}  g6 {[%clk 0:03:00]} 3. Bg2 {[%clk 0:03:02]}  Bg7 {[%clk 0:03:01]} 4. Nc3 {[%clk 0:03:02]}  O-O {[%clk 0:03:02]} 5. d3 {[%clk 0:03:03]}  d6 {[%clk 0:03:03]} 6. Bg5 {[%clk 0:03:04]}  c6 {[%clk 0:03:03]} 7. Qd2 {[%clk 0:03:04]}  Nbd7 {[%clk 0:03:03]} 8. Bh6 {[%clk 0:03:04]}  e5 {[%clk 0:03:02]} 9. h4 {[%clk 0:03:04]}  Qb6 {[%clk 0:03:02]} 10. Bxg7 {[%clk 0:03:02]}  Kxg7 {[%clk 0:03:03]} 11. h5 {[%clk 0:03:02]}  a5 {[%clk 0:02:34]} 12. Nf3 {[%clk 0:02:40]}  Kg8 {[%clk 0:02:12]} 13. Ng5 {[%clk 0:02:33]}  Nc5 {[%clk 0:01:51]} 14. O-O-O {[%clk 0:01:59]}  a4 {[%clk 0:01:35]} 15. hxg6 {[%clk 0:01:55]}  fxg6 {[%clk 0:01:34]} 16. Nxh7 {[%clk 0:01:27]}  Nxh7 {[%clk 0:01:35]} 17. Qh6 {[%clk 0:01:08]}  Qc7 {[%clk 0:01:14]} 18. Qxg6+ {[%clk 0:01:07]}  Qg7 {[%clk 0:01:14]} 19. Qxd6 {[%clk 0:01:06]}  Ne6 {[%clk 0:01:10]} 20. Be4 {[%clk 0:00:56]}  Nhg5 {[%clk 0:01:08]} 21. f4 {[%clk 0:00:50]}  Nxe4 {[%clk 0:00:46]} 22. Nxe4 {[%clk 0:00:50]}  Qc7 {[%clk 0:00:24]} 23. fxe5 {[%clk 0:00:31]}  Qxd6 {[%clk 0:00:22]} 24. Nxd6 {[%clk 0:00:28]}  Nd4 {[%clk 0:00:21]} 25. e3 {[%clk 0:00:25]}  Nf5 {[%clk 0:00:21]} 26. e4 {[%clk 0:00:21]}  Nxd6 {[%clk 0:00:18]} 27. exd6 {[%clk 0:00:22]}  Be6 {[%clk 0:00:17]} 28. e5 {[%clk 0:00:21]}  Kg7 {[%clk 0:00:14]} 29. Rdf1 {[%clk 0:00:20]}  Rxf1+ {[%clk 0:00:13]} 30. Rxf1 {[%clk 0:00:21]}  Rf8 {[%clk 0:00:12]} 31. Rxf8 {[%clk 0:00:20]}  Kxf8 {[%clk 0:00:13]} 32. b3 {[%clk 0:00:20]}  axb3 {[%clk 0:00:13]} 33. axb3 {[%clk 0:00:21]}  c5 {[%clk 0:00:13]} 34. Kd2 {[%clk 0:00:21]}  Kg7 {[%clk 0:00:13]} 35. Ke3 {[%clk 0:00:21]}  Kg6 {[%clk 0:00:13]} 36. d4 {[%clk 0:00:22]}  b6 {[%clk 0:00:12]} 37. d5 {[%clk 0:00:22]}  Bg8 {[%clk 0:00:07]} 38. Kf4 {[%clk 0:00:20]}  Kf7 {[%clk 0:00:07]} 39. e6+ {[%clk 0:00:20]}  Ke8 {[%clk 0:00:08]} 40. Ke5 {[%clk 0:00:20]}  Kd8 {[%clk 0:00:05]} 41. Kf6 {[%clk 0:00:20]}  Bh7 {[%clk 0:00:05]} 42. g4 {[%clk 0:00:20]}  Bc2 {[%clk 0:00:04]} 43. g5 {[%clk 0:00:19]}  Bxb3 {[%clk 0:00:04]} 44. Kf7 {[%clk 0:00:19]}  b5 {[%clk 0:00:00]} 45. e7+ {[%clk 0:00:19]} 1-0


[Site "https://www.chess.com"]

[Event "Titled Tuesday Blitz November 07 Early 2023"]
[White "Akylbek2021"]
[Black "Novikova, Galina"]
[BlackFideId "4157095"]
[WhiteElo "2245"]
[BlackElo "2433"]
[Result "1-0"]
[Round "5"]
[TimeControl "180+1"]
[Date "2023.11.07"]
[WhiteClock "0:00:07"]
[BlackClock "0:00:00"]
[Board "185"]

1. e4 {[%clk 0:03:00]}  e6 {[%clk 0:02:56]} 2. d4 {[%clk 0:03:00]}  d5 {[%clk 0:02:56]} 3. Nd2 {[%clk 0:03:00]}  Nc6 {[%clk 0:02:56]} 4. Ngf3 {[%clk 0:02:57]}  g5 {[%clk 0:02:57]} 5. c3 {[%clk 0:02:51]}  Qf6 {[%clk 0:02:56]} 6. e5 {[%clk 0:02:48]}  Qg7 {[%clk 0:02:56]} 7. Bb5 {[%clk 0:02:47]}  Bd7 {[%clk 0:02:56]} 8. Nf1 {[%clk 0:02:45]}  h6 {[%clk 0:02:55]} 9. Ng3 {[%clk 0:02:36]}  f6 {[%clk 0:02:12]} 10. Qc2 {[%clk 0:01:55]}  O-O-O {[%clk 0:02:10]} 11. Nh5 {[%clk 0:01:46]}  Qf7 {[%clk 0:02:07]} 12. exf6 {[%clk 0:01:26]}  Nxf6 {[%clk 0:02:07]} 13. Bxc6 {[%clk 0:01:15]}  Bxc6 {[%clk 0:02:04]} 14. Nxf6 {[%clk 0:01:11]}  Qxf6 {[%clk 0:02:05]} 15. Be3 {[%clk 0:01:05]}  Bd6 {[%clk 0:02:04]} 16. O-O-O {[%clk 0:01:03]}  Be8 {[%clk 0:02:02]} 17. Rhe1 {[%clk 0:00:56]}  Kb8 {[%clk 0:02:02]} 18. Nd2 {[%clk 0:00:45]}  Bg6 {[%clk 0:02:02]} 19. Qa4 {[%clk 0:00:44]}  Qf5 {[%clk 0:01:49]} 20. b4 {[%clk 0:00:38]}  Rhf8 {[%clk 0:01:29]} 21. Kb2 {[%clk 0:00:37]}  h5 {[%clk 0:01:10]} 22. h3 {[%clk 0:00:36]}  Rde8 {[%clk 0:01:05]} 23. f3 {[%clk 0:00:24]}  Bg3 {[%clk 0:01:01]} 24. Rf1 {[%clk 0:00:21]}  Bf4 {[%clk 0:00:49]} 25. Bxf4 {[%clk 0:00:21]}  Qxf4 {[%clk 0:00:50]} 26. Nb3 {[%clk 0:00:18]}  b6 {[%clk 0:00:47]} 27. Qa6 {[%clk 0:00:17]}  Qf5 {[%clk 0:00:44]} 28. Rf2 {[%clk 0:00:16]}  g4 {[%clk 0:00:43]} 29. hxg4 {[%clk 0:00:16]}  hxg4 {[%clk 0:00:44]} 30. Ka3 {[%clk 0:00:08]}  Qf7 {[%clk 0:00:00]} 31. Nc5 {[%clk 0:00:07]} 1-0


[Site "https://www.chess.com"]

[Event "Titled Tuesday Blitz November 07 Early 2023"]
[White "Polaczek, Richard"]
[Black "Sarkar, Justin"]
[WhiteFideId "200026"]
[BlackFideId "2010011"]
[WhiteElo "2426"]
[BlackElo "2228"]
[Result "1-0"]
[Round "5"]
[TimeControl "180+1"]
[Date "2023.11.07"]
[WhiteClock "0:00:37"]
[BlackClock "0:00:00"]
[Board "187"]

1. d4 {[%clk 0:03:00]}  Nf6 {[%clk 0:02:33]} 2. Bg5 {[%clk 0:02:59]}  c5 {[%clk 0:02:32]} 3. Bxf6 {[%clk 0:02:58]}  gxf6 {[%clk 0:02:31]} 4. d5 {[%clk 0:02:58]}  d6 {[%clk 0:02:15]} 5. c4 {[%clk 0:02:55]}  Bg7 {[%clk 0:02:00]} 6. Nc3 {[%clk 0:02:53]}  f5 {[%clk 0:01:55]} 7. Qc2 {[%clk 0:02:48]}  Na6 {[%clk 0:01:48]} 8. g3 {[%clk 0:02:37]}  O-O {[%clk 0:01:37]} 9. Bh3 {[%clk 0:02:28]}  Qa5 {[%clk 0:01:20]} 10. Nf3 {[%clk 0:02:22]}  Nb4 {[%clk 0:00:46]} 11. Qd2 {[%clk 0:02:15]}  e6 {[%clk 0:00:36]} 12. O-O {[%clk 0:02:10]}  Na6 {[%clk 0:00:12]} 13. Rac1 {[%clk 0:01:50]}  Rd8 {[%clk 0:00:10]} 14. Qg5 {[%clk 0:01:40]}  h6 {[%clk 0:00:06]} 15. Qh5 {[%clk 0:01:25]}  Qc7 {[%clk 0:00:02]} 16. Rfd1 {[%clk 0:00:58]}  Qe7 {[%clk 0:00:02]} 17. Nb5 {[%clk 0:00:58]}  Nc7 {[%clk 0:00:01]} 18. Nxc7 {[%clk 0:00:49]}  Qxc7 {[%clk 0:00:01]} 19. Nd2 {[%clk 0:00:40]}  a6 {[%clk 0:00:01]} 20. e4 {[%clk 0:00:39]}  fxe4 {[%clk 0:00:01]} 21. Nxe4 {[%clk 0:00:39]}  Qe7 {[%clk 0:00:00]} 22. dxe6 {[%clk 0:00:37]} 1-0


[Site "https://www.chess.com"]

[Event "Titled Tuesday Blitz November 07 Early 2023"]
[White "Ismayilova, Khanim"]
[Black "Cesar Maestre, Bernardo"]
[WhiteFideId "13429019"]
[BlackFideId "24542547"]
[WhiteElo "2146"]
[BlackElo "2410"]
[Result "0-1"]
[Round "5"]
[TimeControl "180+1"]
[Date "2023.11.07"]
[WhiteClock "0:01:04"]
[BlackClock "0:01:08"]
[Board "190"]

1. e4 {[%clk 0:03:00]}  c5 {[%clk 0:02:58]} 2. c3 {[%clk 0:03:00]}  Nf6 {[%clk 0:02:55]} 3. e5 {[%clk 0:02:59]}  Nd5 {[%clk 0:02:56]} 4. d4 {[%clk 0:03:00]}  cxd4 {[%clk 0:02:56]} 5. Nf3 {[%clk 0:03:00]}  d6 {[%clk 0:02:56]} 6. Bc4 {[%clk 0:03:00]}  Nb6 {[%clk 0:02:56]} 7. Bb3 {[%clk 0:02:58]}  Nc6 {[%clk 0:02:54]} 8. cxd4 {[%clk 0:02:58]}  dxe5 {[%clk 0:02:53]} 9. d5 {[%clk 0:02:33]}  Na5 {[%clk 0:02:29]} 10. Nxe5 {[%clk 0:02:24]}  Nxb3 {[%clk 0:02:26]} 11. Qxb3 {[%clk 0:02:15]}  Qxd5 {[%clk 0:02:21]} 12. Qxd5 {[%clk 0:02:09]}  Nxd5 {[%clk 0:02:22]} 13. O-O {[%clk 0:02:09]}  f6 {[%clk 0:02:16]} 14. Nc4 {[%clk 0:02:07]}  e5 {[%clk 0:02:11]} 15. f4 {[%clk 0:02:04]}  Bc5+ {[%clk 0:02:08]} 16. Kh1 {[%clk 0:02:04]}  exf4 {[%clk 0:02:08]} 17. Bxf4 {[%clk 0:02:03]}  Nxf4 {[%clk 0:02:07]} 18. Rxf4 {[%clk 0:02:03]}  Be6 {[%clk 0:02:06]} 19. Re4 {[%clk 0:02:01]}  Kf7 {[%clk 0:02:04]} 20. Nc3 {[%clk 0:02:01]}  Rhe8 {[%clk 0:02:00]} 21. Na4 {[%clk 0:01:53]}  Bf8 {[%clk 0:01:53]} 22. Na5 {[%clk 0:01:50]}  b6 {[%clk 0:01:37]} 23. Nc6 {[%clk 0:01:47]}  Bd7 {[%clk 0:01:33]} 24. Rxe8 {[%clk 0:01:43]}  Rxe8 {[%clk 0:01:27]} 25. Rc1 {[%clk 0:01:31]}  Bxc6 {[%clk 0:01:26]} 26. Nc3 {[%clk 0:01:31]}  a6 {[%clk 0:01:17]} 27. h3 {[%clk 0:01:19]}  Bc5 {[%clk 0:01:14]} 28. Nb1 {[%clk 0:01:08]}  Re2 {[%clk 0:01:12]} 29. b4 {[%clk 0:01:04]}  Bxg2+ {[%clk 0:01:08]} 0-1


[Site "https://www.chess.com"]

[Event "Titled Tuesday Blitz November 07 Early 2023"]
[White "Kukreja Sankalp"]
[Black "Dahlgren, James Allen"]
[WhiteFideId "45027676"]
[BlackFideId "22256873"]
[WhiteElo "2399"]
[BlackElo "2086"]
[Result "1-0"]
[Round "5"]
[TimeControl "180+1"]
[Date "2023.11.07"]
[WhiteClock "0:01:19"]
[BlackClock "0:00:23"]
[Board "194"]

1. e4 {[%clk 0:02:54]}  e6 {[%clk 0:01:26]} 2. d4 {[%clk 0:02:52]}  c5 {[%clk 0:01:18]} 3. c3 {[%clk 0:02:49]}  d5 {[%clk 0:01:11]} 4. e5 {[%clk 0:02:49]}  Qb6 {[%clk 0:01:10]} 5. Nf3 {[%clk 0:02:48]}  Bd7 {[%clk 0:01:11]} 6. a3 {[%clk 0:02:48]}  Bb5 {[%clk 0:01:11]} 7. Bxb5+ {[%clk 0:02:45]}  Qxb5 {[%clk 0:01:12]} 8. b4 {[%clk 0:02:45]}  cxb4 {[%clk 0:01:11]} 9. cxb4 {[%clk 0:02:45]}  a5 {[%clk 0:01:10]} 10. Nc3 {[%clk 0:02:36]}  Qc4 {[%clk 0:01:03]} 11. Qa4+ {[%clk 0:02:33]}  Nc6 {[%clk 0:01:00]} 12. Nb5 {[%clk 0:02:29]}  Rc8 {[%clk 0:00:53]} 13. Bd2 {[%clk 0:02:19]}  axb4 {[%clk 0:00:50]} 14. axb4 {[%clk 0:02:16]}  Bxb4 {[%clk 0:00:47]} 15. Bxb4 {[%clk 0:02:07]}  Qxb4+ {[%clk 0:00:42]} 16. Qxb4 {[%clk 0:02:07]}  Nxb4 {[%clk 0:00:43]} 17. Nd6+ {[%clk 0:02:07]}  Kd7 {[%clk 0:00:44]} 18. Nxc8 {[%clk 0:02:05]}  Nc2+ {[%clk 0:00:44]} 19. Kd2 {[%clk 0:02:05]}  Nxa1 {[%clk 0:00:44]} 20. Rxa1 {[%clk 0:01:57]}  Kxc8 {[%clk 0:00:44]} 21. Ra8+ {[%clk 0:01:57]}  Kd7 {[%clk 0:00:41]} 22. Ng5 {[%clk 0:01:58]}  Ke7 {[%clk 0:00:39]} 23. Rb8 {[%clk 0:01:57]}  f6 {[%clk 0:00:35]} 24. Rxb7+ {[%clk 0:01:56]}  Kf8 {[%clk 0:00:33]} 25. Nxe6+ {[%clk 0:01:53]}  Ke8 {[%clk 0:00:32]} 26. Nxg7+ {[%clk 0:01:38]}  Kd8 {[%clk 0:00:28]} 27. Ne6+ {[%clk 0:01:28]}  Ke8 {[%clk 0:00:28]} 28. exf6 {[%clk 0:01:23]}  Nxf6 {[%clk 0:00:27]} 29. Rb8+ {[%clk 0:01:23]}  Kf7 {[%clk 0:00:28]} 30. Rxh8 {[%clk 0:01:19]}  Kxe6 {[%clk 0:00:28]} 31. Ke3 {[%clk 0:01:19]}  Kf5 {[%clk 0:00:27]} 32. Rf8 {[%clk 0:01:18]}  Kg6 {[%clk 0:00:26]} 33. Rxf6+ {[%clk 0:01:18]}  Kxf6 {[%clk 0:00:23]} 34. Kf4 {[%clk 0:01:19]} 1-0


[Site "https://www.chess.com"]

[Event "Titled Tuesday Blitz November 07 Early 2023"]
[White "Ghosh, Chanchal Kumer"]
[Black "Marcziter, Dmitrii"]
[WhiteFideId "10201858"]
[BlackFideId "13900765"]
[WhiteElo "1968"]
[BlackElo "2393"]
[Result "0-1"]
[Round "5"]
[TimeControl "180+1"]
[Date "2023.11.07"]
[WhiteClock "0:00:00"]
[BlackClock "0:00:14"]
[Board "195"]

1. e4 {[%clk 0:02:57]}  c5 {[%clk 0:02:58]} 2. Nf3 {[%clk 0:02:51]}  a6 {[%clk 0:02:58]} 3. d4 {[%clk 0:02:51]}  cxd4 {[%clk 0:02:57]} 4. Nxd4 {[%clk 0:02:52]}  e6 {[%clk 0:02:57]} 5. c4 {[%clk 0:02:52]}  Nf6 {[%clk 0:02:50]} 6. Bd3 {[%clk 0:02:51]}  Qc7 {[%clk 0:02:46]} 7. O-O {[%clk 0:02:49]}  Bc5 {[%clk 0:02:43]} 8. Nb3 {[%clk 0:02:47]}  Be7 {[%clk 0:02:40]} 9. Be3 {[%clk 0:02:44]}  d6 {[%clk 0:02:34]} 10. Nc3 {[%clk 0:02:43]}  Nc6 {[%clk 0:02:26]} 11. f4 {[%clk 0:02:42]}  O-O {[%clk 0:02:25]} 12. g4 {[%clk 0:02:36]}  Nb4 {[%clk 0:02:22]} 13. g5 {[%clk 0:02:28]}  Nd7 {[%clk 0:02:20]} 14. Be2 {[%clk 0:02:22]}  g6 {[%clk 0:02:17]} 15. h4 {[%clk 0:02:19]}  Re8 {[%clk 0:02:17]} 16. h5 {[%clk 0:02:17]}  Bf8 {[%clk 0:02:17]} 17. hxg6 {[%clk 0:02:14]}  fxg6 {[%clk 0:02:15]} 18. Rf2 {[%clk 0:02:12]}  Bg7 {[%clk 0:02:15]} 19. Rc1 {[%clk 0:01:43]}  b6 {[%clk 0:02:13]} 20. Qf1 {[%clk 0:01:33]}  Bb7 {[%clk 0:02:11]} 21. Qg2 {[%clk 0:01:30]}  Qd8 {[%clk 0:02:07]} 22. a3 {[%clk 0:01:24]}  Nc6 {[%clk 0:02:05]} 23. Qh3 {[%clk 0:01:17]}  Nf8 {[%clk 0:02:01]} 24. Rd1 {[%clk 0:01:13]}  Qc7 {[%clk 0:01:58]} 25. Bf3 {[%clk 0:01:12]}  Na5 {[%clk 0:01:49]} 26. Nxa5 {[%clk 0:01:07]}  bxa5 {[%clk 0:01:49]} 27. Rh2 {[%clk 0:01:04]}  Qxc4 {[%clk 0:01:44]} 28. Rxd6 {[%clk 0:00:59]}  Rad8 {[%clk 0:01:40]} 29. Rhd2 {[%clk 0:00:57]}  Rxd6 {[%clk 0:01:37]} 30. Rxd6 {[%clk 0:00:57]}  Qc7 {[%clk 0:01:33]} 31. Rd3 {[%clk 0:00:46]}  Rd8 {[%clk 0:01:27]} 32. Rxd8 {[%clk 0:00:44]}  Qxd8 {[%clk 0:01:27]} 33. Qf1 {[%clk 0:00:37]}  h6 {[%clk 0:01:18]} 34. Qc4 {[%clk 0:00:33]}  hxg5 {[%clk 0:01:14]} 35. fxg5 {[%clk 0:00:34]}  Qd6 {[%clk 0:01:08]} 36. Kg2 {[%clk 0:00:29]}  Qe5 {[%clk 0:01:04]} 37. Qc5 {[%clk 0:00:17]}  Nd7 {[%clk 0:00:58]} 38. Qe7 {[%clk 0:00:13]}  Bc6 {[%clk 0:00:47]} 39. Qd8+ {[%clk 0:00:10]}  Nf8 {[%clk 0:00:41]} 40. Qe7 {[%clk 0:00:09]}  Bb5 {[%clk 0:00:32]} 41. Bc5 {[%clk 0:00:08]}  Qf4 {[%clk 0:00:20]} 42. Ne2 {[%clk 0:00:05]}  Qd2 {[%clk 0:00:18]} 43. b4 {[%clk 0:00:05]}  Bxe2 {[%clk 0:00:18]} 44. Bxe2 {[%clk 0:00:04]}  Qxe2+ {[%clk 0:00:18]} 45. Kg3 {[%clk 0:00:04]}  axb4 {[%clk 0:00:18]} 46. Bd6 {[%clk 0:00:02]}  bxa3 {[%clk 0:00:16]} 47. Bxa3 {[%clk 0:00:02]}  Qxe4 {[%clk 0:00:15]} 48. Bd6 {[%clk 0:00:00]}  Qf5 {[%clk 0:00:14]} 0-1


[Site "https://www.chess.com"]

[Event "Titled Tuesday Blitz November 07 Early 2023"]
[White "Goldin, Roman"]
[Black "Winkels, Marcel"]
[WhiteFideId "2803860"]
[BlackFideId "1003887"]
[WhiteElo "2393"]
[BlackElo "2076"]
[Result "1-0"]
[Round "5"]
[TimeControl "180+1"]
[Date "2023.11.07"]
[WhiteClock "0:02:01"]
[BlackClock "0:02:00"]
[Board "196"]

1. Nf3 {[%clk 0:02:58]}  Nf6 {[%clk 0:03:00]} 2. g3 {[%clk 0:02:58]}  g6 {[%clk 0:03:00]} 3. Bg2 {[%clk 0:02:59]}  Bg7 {[%clk 0:03:00]} 4. O-O {[%clk 0:02:59]}  d5 {[%clk 0:03:00]} 5. d3 {[%clk 0:02:56]}  O-O {[%clk 0:02:59]} 6. Nbd2 {[%clk 0:02:55]}  c5 {[%clk 0:02:59]} 7. e4 {[%clk 0:02:55]}  Nc6 {[%clk 0:02:59]} 8. exd5 {[%clk 0:02:54]}  Nxd5 {[%clk 0:02:56]} 9. Re1 {[%clk 0:02:54]}  Bg4 {[%clk 0:02:54]} 10. h3 {[%clk 0:02:52]}  Bf5 {[%clk 0:02:49]} 11. Nc4 {[%clk 0:02:51]}  Nd4 {[%clk 0:02:45]} 12. c3 {[%clk 0:02:44]}  Nxf3+ {[%clk 0:02:44]} 13. Qxf3 {[%clk 0:02:45]}  Nb6 {[%clk 0:02:41]} 14. Qxb7 {[%clk 0:02:26]}  Qxd3 {[%clk 0:02:31]} 15. Nxb6 {[%clk 0:02:19]}  axb6 {[%clk 0:02:30]} 16. Qxb6 {[%clk 0:02:17]}  Rac8 {[%clk 0:02:17]} 17. Rxe7 {[%clk 0:02:02]}  Bf6 {[%clk 0:02:00]} 18. Qxf6 {[%clk 0:02:01]} 1-0


[Site "https://www.chess.com"]

[Event "Titled Tuesday Blitz November 07 Early 2023"]
[White "La Villa Rivas, Marlon Javier"]
[Black "Mohammadian,Mohammad"]
[WhiteFideId "3519546"]
[BlackFideId "12566055"]
[WhiteElo "2392"]
[BlackElo "1870"]
[Result "0-1"]
[Round "5"]
[TimeControl "180+1"]
[Date "2023.11.07"]
[WhiteClock "0:00:25"]
[BlackClock "0:00:43"]
[Board "197"]

1. e4 {[%clk 0:02:32]}  e5 {[%clk 0:02:59]} 2. Nf3 {[%clk 0:02:29]}  Nc6 {[%clk 0:02:57]} 3. Bb5 {[%clk 0:02:29]}  a6 {[%clk 0:02:55]} 4. Ba4 {[%clk 0:02:29]}  Nf6 {[%clk 0:02:54]} 5. d3 {[%clk 0:02:29]}  b5 {[%clk 0:02:53]} 6. Bb3 {[%clk 0:02:29]}  Be7 {[%clk 0:02:49]} 7. g4 {[%clk 0:02:28]}  h6 {[%clk 0:02:36]} 8. g5 {[%clk 0:02:27]}  hxg5 {[%clk 0:02:33]} 9. Bxg5 {[%clk 0:02:23]}  d6 {[%clk 0:02:29]} 10. Nc3 {[%clk 0:02:20]}  Bg4 {[%clk 0:02:29]} 11. Bxf6 {[%clk 0:02:08]}  Bxf6 {[%clk 0:02:25]} 12. Rg1 {[%clk 0:02:08]}  Bh5 {[%clk 0:02:20]} 13. Rg3 {[%clk 0:01:43]}  Nd4 {[%clk 0:02:19]} 14. Nd5 {[%clk 0:01:41]}  Bh4 {[%clk 0:02:16]} 15. c3 {[%clk 0:01:39]}  Bxg3 {[%clk 0:02:15]} 16. cxd4 {[%clk 0:01:39]}  Bxh2 {[%clk 0:02:07]} 17. Qc2 {[%clk 0:01:30]}  Bxf3 {[%clk 0:02:03]} 18. Nxc7+ {[%clk 0:01:29]}  Kf8 {[%clk 0:01:59]} 19. Nxa8 {[%clk 0:01:29]}  Qxa8 {[%clk 0:01:57]} 20. Qc7 {[%clk 0:01:26]}  Qe8 {[%clk 0:01:44]} 21. Qxd6+ {[%clk 0:01:23]}  Kg8 {[%clk 0:01:42]} 22. Bd1 {[%clk 0:00:51]}  Bxd1 {[%clk 0:01:36]} 23. Rxd1 {[%clk 0:00:50]}  exd4 {[%clk 0:01:37]} 24. Qxd4 {[%clk 0:00:51]}  Be5 {[%clk 0:01:34]} 25. Qb4 {[%clk 0:00:49]}  Rh1+ {[%clk 0:01:31]} 26. Ke2 {[%clk 0:00:49]}  Rxd1 {[%clk 0:01:30]} 27. Kxd1 {[%clk 0:00:50]}  Qb8 {[%clk 0:01:27]} 28. Ke2 {[%clk 0:00:49]}  Bf6 {[%clk 0:01:25]} 29. d4 {[%clk 0:00:45]}  Qb6 {[%clk 0:01:20]} 30. e5 {[%clk 0:00:44]}  Bg5 {[%clk 0:01:19]} 31. Qc3 {[%clk 0:00:40]}  Qd8 {[%clk 0:01:13]} 32. Qg3 {[%clk 0:00:30]}  Be7 {[%clk 0:01:09]} 33. Qe3 {[%clk 0:00:24]}  Qd5 {[%clk 0:01:06]} 34. f4 {[%clk 0:00:23]}  Qxa2 {[%clk 0:01:05]} 35. f5 {[%clk 0:00:17]}  Qxb2+ {[%clk 0:01:04]} 36. Kf3 {[%clk 0:00:17]}  Bb4 {[%clk 0:00:56]} 37. Qe4 {[%clk 0:00:17]}  Qc3+ {[%clk 0:00:53]} 38. Kg4 {[%clk 0:00:17]}  Qc8 {[%clk 0:00:51]} 39. e6 {[%clk 0:00:17]}  fxe6 {[%clk 0:00:49]} 40. fxe6 {[%clk 0:00:17]}  Be7 {[%clk 0:00:49]} 41. d5 {[%clk 0:00:18]}  Qc4 {[%clk 0:00:48]} 42. Kf5 {[%clk 0:00:17]}  Qxe4+ {[%clk 0:00:47]} 43. Kxe4 {[%clk 0:00:18]}  Kf8 {[%clk 0:00:47]} 44. Ke5 {[%clk 0:00:19]}  Bf6+ {[%clk 0:00:45]} 45. Kd6 {[%clk 0:00:19]}  Ke8 {[%clk 0:00:45]} 46. Kc7 {[%clk 0:00:19]}  Be5+ {[%clk 0:00:44]} 47. d6 {[%clk 0:00:20]}  Bxd6+ {[%clk 0:00:43]} 48. Kxd6 {[%clk 0:00:21]}  g5 {[%clk 0:00:43]} 49. Kc5 {[%clk 0:00:22]}  g4 {[%clk 0:00:43]} 50. Kd4 {[%clk 0:00:22]}  g3 {[%clk 0:00:42]} 51. Ke3 {[%clk 0:00:23]}  Ke7 {[%clk 0:00:41]} 52. Kf3 {[%clk 0:00:23]}  Kxe6 {[%clk 0:00:42]} 53. Kxg3 {[%clk 0:00:24]}  Kd5 {[%clk 0:00:42]} 54. Kf2 {[%clk 0:00:25]}  Kc4 {[%clk 0:00:42]} 55. Ke2 {[%clk 0:00:26]}  Kc3 {[%clk 0:00:42]} 56. Kd1 {[%clk 0:00:26]}  Kb2 {[%clk 0:00:42]} 57. Kd2 {[%clk 0:00:26]}  a5 {[%clk 0:00:43]} 58. Kd3 {[%clk 0:00:25]}  a4 {[%clk 0:00:43]} 0-1


[Site "https://www.chess.com"]